[Event "56th Ilmar Raud Memorial 2022"]
[Site "Viljandi"]
[Date "2022.07.05"]
[Round "1.1"]
[White "Heinmets, Tonu"]
[Black "Laurusas, Tomas"]
[Result "0-1"]
[ECO "A12"]
[WhiteElo "1961"]
[BlackElo "2561"]
[Annotator "TA"]
[PlyCount "48"]
[EventDate "2022.07.05"]
[EventType "swiss"]
[EventCountry "EST"]
[SourceTitle "playchess.com"]
[Source "ChessBase"]
[SourceQuality "1"]
[TimeControl "40/5400+30:900+30"]

{[%evp 20,48,-4,-15,-14,-16,-5,-45,-35,-38,-40,-33,-24,-43,-31,-75,-61,-106,-105,-115,-106,-118,-122,-110,-116,-277,-270,-481,-477,-570,-569]} 1. Nf3 {[%emt 0:00:03]} d5 {[%emt 0:00:25]} 2. g3 {[%emt 0:00:09]} Nf6 {[%emt 0:01:34]} 3. Bg2 {[%emt 0:00:09]} Bf5 {[%emt 0:00:32]} 4. O-O {[%emt 0:00:24]} e6 {[%emt 0:00:27]} 5. c4 {[%emt 0:04:51]} c6 {[%emt 0:03:47]} 6. b3 {[%emt 0:02:30]} Be7 {[%emt 0:01:33]} 7. Bb2 {[%emt 0:01:26]} O-O {[%emt 0:00:24]} 8. d3 {[%emt 0:00:07]} h6 {[%emt 0:02:36]} 9. Nbd2 {[%emt 0:00:24]} Bh7 {[%emt 0:01:23] 9...a5 is becoming the main line.} 10. Re1 {[%emt 0:07:15]} Nbd7 {[%emt 0:05:31]} 11. Qc2 {[%emt 0:00:51]} a5 {[%emt 0:00:46] A12: English Opening: 1...c6 with b3 by White.} 12. a3 {[%emt 0:00:06]} Qb6 {[%emt 0:15:01]} 13. e4 {[%emt 0:08:40]} dxe4 {[%emt 0:06:49] Black is slightly better.} ({Of course not} 13... Ng4 14. Re2 $11) 14. dxe4 {[%emt 0:00:34]} Rfd8 {[%emt 0:06:57] [#]} 15. Bd4 $146 {[%emt 0:12:29]} ({Predecessor:} 15. Rad1 Ng4 16. Re2 Bf6 17. h3 Bxb2 18. Qxb2 Ngf6 19. e5 Ne8 20. Nd4 Nc5 21. N2f3 Nxb3 {1-0 (83) Bobanac,M (2261)-Vujnovic,P (2138) Bosnjaci 2022}) 15... Bc5 {[%emt 0:07:00]} 16. Bxc5 {[%emt 0:15:14]} Nxc5 {[%emt 0:00:19]} 17. Ne5 {[%emt 0:05:10] Against Ng4} Qc7 {[%emt 0:05:24]} 18. f4 {[%emt 0:07:10] [#]} Rxd2 $1 {[%emt 0:00:08][%mdl 512]} 19. Qxd2 {[%emt 0:00:06] Qe3 is the strong threat.} Nxb3 {[%emt 0:00:04] Pair of Knights!} 20. Qc3 {[%emt 0:00:21]} Nxa1 {[%emt 0:00:19]} 21. Qxa1 {[%emt 0:00:15]} Qb6+ {[%emt 0:01:05]} 22. Kh1 $2 {[%emt 0:00:11] [#]} (22. Kf1 $17) 22... Rd8 $1 $19 {[%emt 0:00:16]} 23. Qc3 $2 {[%emt 0:01:10]} (23. Qa2 {was necessary.}) 23... Qf2 {[%emt 0:01:44][%cal Oh7e4] Hoping for ...Bxe4!} 24. Rf1 {[%emt 0:02:07] [#]} Bxe4 $1 {[%emt 0:00:25] Weighted Error Value: White=0.53/Black=0.01 (flawless)} 0-1

[Event "56th Ilmar Raud Memorial 2022"]
[Site "Viljandi"]
[Date "2022.07.05"]
[Round "1.2"]
[White "Kulaots, Kaido"]
[Black "Shnurov, Daniil"]
[Result "1-0"]
[ECO "E71"]
[WhiteElo "2543"]
[BlackElo "1868"]
[Annotator "TA"]
[PlyCount "111"]
[EventDate "2022.07.05"]
[EventType "swiss"]
[EventCountry "EST"]
[SourceTitle "playchess.com"]
[Source "ChessBase"]
[SourceQuality "1"]
[TimeControl "40/5400+30:900+30"]

{[%evp 13,111,33,35,38,41,47,45,41,85,54,60,54,73,71,87,68,68,23,24,0,-10,24,0,28,76,64,68,65,83,72,83,60,151,154,162,149,130,114,225,223,290,322,311,235,255,215,299,325,309,297,340,326,360,318,409,453,497,494,489,482,481,486,459,469,694,673,699,663,621,591,870,872,852,833,1828,1711,1818,1814,1590,1696,2429,2273,2936,2479,2571,2504,2517,2536,29983,29984,29984,29985,29989,29990,29994,29995,29995,29994,29994,29995]} 1. d4 {[%emt 0:00:12]} Nf6 {[%emt 0:00:24]} 2. c4 {[%emt 0:00:19]} g6 {[%emt 0:00:08]} 3. Nc3 {[%emt 0:00:16]} Bg7 {[%emt 0:00:07]} 4. e4 {[%emt 0:00:08]} d6 {[%emt 0:00:05]} 5. h3 {[%emt 0:00:07]} O-O {[%emt 0:00:07]} 6. Be3 {[%emt 0:00:11]} e5 {[%emt 0:01:10]} 7. d5 {[%emt 0:00:44]} Na6 {[%emt 0:06:34]} 8. g4 {[%emt 0:05:44] E71: King's Indian: 4 e4 d6 5 h3.} Nc5 {[%emt 0:02:19]} 9. f3 {[%emt 0:02:08]} a5 {[%emt 0:01:40]} 10. Nge2 {[%emt 0:02:24] White is slightly better.} Bd7 {[%emt 0:07:29]} 11. Ng3 {[%emt 0:08:18]} c6 {[%emt 0:08:20]} 12. Qd2 {[%emt 0:08:28]} a4 {[%emt 0:20:42]} 13. h4 {[%emt 0:03:32]} Qa5 {[%emt 0:05:20]} 14. Rb1 {[%emt 0:11:46]} cxd5 {[%emt 0:03:31]} 15. cxd5 {[%emt 0:04:05]} b5 {[%emt 0:03:05] [#]} 16. g5 $146 {[%emt 0:09:31]} ({Predecessor:} 16. h5 b4 17. Nd1 Bxg4 18. Bxc5 Bxf3 19. Bxb4 Qb6 20. Rh4 Ng4 21. Rxg4 Bxg4 22. a3 {1-0 (44) Ruiz Castillo,J (2454)-Chen,R (2242) Richardson 2022}) 16... Ne8 {[%emt 0:16:49]} 17. h5 {[%emt 0:00:47]} b4 {[%emt 0:00:06]} 18. Nd1 {[%emt 0:00:35]} b3 {[%emt 0:00:45]} (18... f6 $11 {might be stronger.}) 19. a3 {[%emt 0:02:00]} Qxd2+ {[%emt 0:01:50]} 20. Kxd2 {[%emt 0:03:40]} f6 {[%emt 0:06:09]} 21. Be2 {[%emt 0:05:50]} Rc8 {[%emt 0:05:00]} 22. Nc3 {[%emt 0:08:36]} f5 {[%emt 0:03:20]} (22... fxg5 $14 23. hxg6 hxg6) 23. h6 $16 {[%emt 0:04:28]} Bh8 {[%emt 0:00:32] [#]} 24. Nf1 $1 {[%emt 0:04:31]} Nb7 {[%emt 0:02:38]} 25. Ke1 {[%emt 0:02:28]} Nd8 {[%emt 0:01:14]} (25... Na5 $16) 26. Nd2 $18 {[%emt 0:00:42]} fxe4 {[%emt 0:01:17]} 27. fxe4 {[%emt 0:00:45]} (27. Ndxe4 Nf7 $16) 27... Rf4 {[%emt 0:01:06]} 28. Rg1 {[%emt 0:03:42]} (28. Bxf4 exf4 29. Rh4 Nf7 $16) 28... Nb7 {[%emt 0:01:59]} 29. Ba6 {[%emt 0:04:20]} ({But not} 29. Bxf4 $6 exf4 30. Bg4 Bxg4 31. Rxg4 Nc5 $16) 29... Rb8 {[%emt 0:00:42]} 30. Bb5 {[%emt 0:01:07]} (30. Bxf4 exf4 31. Bxb7 Rxb7 $18) 30... Bxb5 {[%emt 0:00:22]} 31. Nxb5 {[%emt 0:00:07]} ({Less strong is} 31. Bxf4 exf4 32. Nxb5 Rc8 $16) 31... Rc8 {[%emt 0:00:33]} 32. Nc3 {[%emt 0:00:44]} Nc5 {[%emt 0:00:34]} 33. Ke2 {[%emt 0:00:25]} Rh4 {[%emt 0:00:25]} 34. Rbf1 {[%emt 0:00:45]} Ra8 {[%emt 0:00:36]} (34... Rh2+ $2 35. Rf2 Rxf2+ 36. Bxf2 $18) 35. Bxc5 {[%emt 0:00:44]} dxc5 {[%emt 0:00:03]} 36. Nc4 {[%emt 0:00:07] Prevents Nd6.} Nc7 {[%emt 0:00:49]} 37. Rf2 {[%emt 0:02:49]} Rf4 {[%emt 0:00:22]} 38. Rgf1 {[%emt 0:01:12]} Ra6 {[%emt 0:00:46]} (38... Re8 $142 39. Nb6 (39. Rxf4 exf4 40. d6 Ne6 $18) 39... Rd8) 39. Rxf4 {[%emt 0:00:31]} exf4 {[%emt 0:00:04]} 40. e5 {[%emt 0:00:00]} Ra8 {[%emt 0:00:00]} 41. Rxf4 {[%emt 0:07:50]} Rd8 {[%emt 0:03:46]} 42. d6 {[%emt 0:00:58]} Ne6 {[%emt 0:00:15]} 43. Rf2 {[%emt 0:01:12] [#] Hoping for Nd5.} Rf8 {[%emt 0:12:34]} 44. Rxf8+ {[%emt 0:00:48]} Kxf8 {[%emt 0:00:04]} 45. Nxa4 {[%emt 0:00:42][%mdl 4096] Endgame KBN-KNN} Ke8 {[%emt 0:01:47]} 46. Nab6 {[%emt 0:00:36]} Nxg5 {[%emt 0:00:28]} 47. a4 {[%emt 0:00:20][%cal Ba3a4,Ba4a5,Ba5a6][%mdl 32] And now a5 would win.} Ne6 {[%emt 0:00:24]} 48. a5 {[%emt 0:00:40]} Nd4+ {[%emt 0:00:37]} 49. Ke3 {[%emt 0:00:48]} Kf7 {[%emt 0:00:32]} 50. a6 {[%emt 0:00:31] White threatens a7 and mate.} Nc6 {[%emt 0:00:11]} 51. Ke4 {[%emt 0:00:32] White mates.} Ke6 {[%emt 0:00:48]} 52. Nd5 {[%emt 0:00:40]} g5 {[%emt 0:00:28]} 53. Nc7+ {[%emt 0:00:19] Pair of Knights!} Kd7 {[%emt 0:00:29]} 54. e6+ {[%emt 0:00:25][%cal Be5e6,Be6e7][%mdl 32]} Kc8 {[%emt 0:00:33]} 55. a7 {[%emt 0:00:22]} Nxa7 {[%emt 0:00:08]} 56. e7 {[%emt 0:00:07] Weighted Error Value: White=0.09 (flawless) /Black=0.41} 1-0

[Event "56th Ilmar Raud Memorial 2022"]
[Site "Viljandi"]
[Date "2022.07.05"]
[Round "1.3"]
[White "Kull, Tormi"]
[Black "Pultinevicius, Paulius"]
[Result "0-1"]
[ECO "C54"]
[WhiteElo "1826"]
[BlackElo "2539"]
[Annotator "TA"]
[PlyCount "68"]
[EventDate "2022.07.05"]
[EventType "swiss"]
[EventCountry "EST"]
[SourceTitle "playchess.com"]
[Source "ChessBase"]
[SourceQuality "1"]
[TimeControl "40/5400+30:900+30"]

{[%evp 23,68,-44,11,-52,-33,-57,-38,-62,-66,-57,-60,-157,-53,-76,-51,-53,-46,-55,-41,-41,-45,-52,-18,-87,-67,-85,-86,-82,-96,-82,-60,-83,-52,-89,-50,-241,-238,-246,-240,-470,-330,-599,-518,-828,-805,-743,-689]} 1. e4 {[%emt 0:00:01]} e5 {[%emt 0:00:25]} 2. Nf3 {[%emt 0:00:07]} Nc6 {[%emt 0:00:05]} 3. Bc4 {[%emt 0:00:07]} Bc5 {[%emt 0:00:29]} 4. c3 {[%emt 0:00:07]} Nf6 {[%emt 0:00:06]} 5. d3 {[%emt 0:00:05]} d6 {[%emt 0:00:36]} 6. O-O {[%emt 0:00:07]} O-O {[%emt 0:00:59]} 7. Nbd2 {[%emt 0:00:06]} a6 {[%emt 0:01:06]} 8. Re1 {[%emt 0:01:44]} Ba7 {[%emt 0:05:25]} 9. Bb3 {[%emt 0:01:28]} Ng4 {[%emt 0:01:45]} 10. Re2 {[%emt 0:00:16]} Kh8 {[%emt 0:01:00]} 11. h3 {[%emt 0:02:24]} f5 {[%emt 0:02:49][%cal Bf7f5,Bf5f4][%mdl 32]} 12. Nf1 {[%emt 0:10:34]} Nh6 {[%emt 0:12:26]} (12... fxe4 $15 13. dxe4 Nf6) 13. N1h2 {[%emt 0:06:23] C54: Giuoco Piano: 4 c3 Nf6, main lines with 5 d4 and 5 d3.} (13. Bxh6 $11 gxh6 14. exf5) 13... f4 $1 $15 {[%emt 0:01:47]} 14. d4 {[%emt 0:02:21]} Qf6 $1 {[%emt 0:00:28]} 15. dxe5 {[%emt 0:01:47] Black is slightly better.} dxe5 {[%emt 0:01:16] [#]} 16. Kh1 $146 {[%emt 0:05:27]} ({Predecessor:} 16. a4 g5 17. Ba2 g4 18. hxg4 Nxg4 19. b4 Qg7 20. Kf1 Nxh2+ 21. Nxh2 Qh6 22. Kg1 {0-1 (32) Cengel,E (1456)-Sade,D (1933) Ankara 2020}) 16... Nf7 {[%emt 0:11:27]} 17. Qd5 {[%emt 0:04:10]} (17. Bd5 $15) 17... Ne7 {[%emt 0:04:10]} (17... g5 $17 {Hoping for ...h5.} 18. Ng4 Qg7) 18. Qc4 {[%emt 0:02:15]} b5 {[%emt 0:02:01]} 19. Qd3 {[%emt 0:02:02]} (19. Qxc7 $2 Bb6 20. Qxb6 Qxb6 $19) 19... Rd8 {[%emt 0:01:44]} 20. Qc2 {[%emt 0:00:34]} Be6 {[%emt 0:00:40]} 21. Bxe6 {[%emt 0:02:49]} Qxe6 {[%emt 0:00:04]} 22. b3 {[%emt 0:00:18]} c5 {[%emt 0:02:05]} 23. a4 {[%emt 0:03:42]} (23. Kg1 $11) 23... c4 $17 {[%emt 0:01:24] Black is more active.} 24. bxc4 {[%emt 0:01:19]} bxc4 {[%emt 0:02:24]} 25. Ba3 {[%emt 0:02:41]} Ng8 $1 {[%emt 0:00:18]} 26. Rb1 {[%emt 0:02:42]} Nf6 {[%emt 0:01:14]} 27. Rb7 {[%emt 0:01:06] Threatens to win with Re7.} Rd7 {[%emt 0:00:42] Against Re7} 28. Qb1 {[%emt 0:01:09]} h6 {[%emt 0:04:02]} 29. Reb2 $2 {[%emt 0:03:20] [#] Now White is beyond hope.} (29. Rd2 $15 Qc6 30. Rbxd7 (30. Rdxd7 Nxd7 31. Kg1 Nd8 $15) 30... Nxd7 31. Qc2) 29... Rad8 $1 $19 {[%emt 0:02:41] ...Rd1+ is the strong threat.} ({Weaker is} 29... Rxb7 30. Rxb7 Nd7 31. Qd1 $11) 30. Rxd7 {[%emt 0:01:08]} Rxd7 {[%emt 0:01:42]} ({Inferior is} 30... Qxd7 31. Rd2 Qc7 32. Re2 $17) 31. Nh4 $2 {[%emt 0:03:22]} (31. Rb7 Bxf2 32. Nf1) 31... Kh7 {[%emt 0:00:46]} ({Stronger than} 31... Nxe4 32. Qxe4 Rd1+ {[#]} 33. Nf1 $1 {[%mdl 512]} Rxf1+ 34. Kh2 $11) 32. Nf5 $2 {[%emt 0:02:24]} (32. f3) 32... Qc6 {[%emt 0:01:14] Black is clearly winning.} 33. Ng4 {[%emt 0:01:37]} (33. Qc2 $142 Qxe4 34. Nf3) 33... Nxg4 {[%emt 0:00:36]} 34. hxg4 {[%emt 0:01:21]} Qxa4 {[%emt 0:00:30] Weighted Error Value: White=0.64/Black=0.20 (precise)} 0-1

[Event "56th Ilmar Raud Memorial 2022"]
[Site "Viljandi"]
[Date "2022.07.05"]
[Round "1.4"]
[White "Maiorov, Nikita"]
[Black "Protassov, Vlad"]
[Result "1-0"]
[ECO "D37"]
[WhiteElo "2474"]
[BlackElo "1824"]
[Annotator "TA"]
[PlyCount "64"]
[EventDate "2022.07.05"]
[EventType "swiss"]
[EventCountry "EST"]
[SourceTitle "playchess.com"]
[Source "ChessBase"]
[SourceQuality "1"]
[TimeControl "40/5400+30:900+30"]

{[%evp 11,64,6,27,6,8,11,4,0,33,28,68,76,125,108,112,115,157,152,161,150,149,150,175,171,182,176,277,278,459,446,457,452,404,187,187,183,190,188,187,179,186,172,181,154,310,326,309,287,454,445,648,632,589,557,2238]} 1. d4 {[%emt 0:00:03]} Nf6 {[%emt 0:00:16]} 2. c4 {[%emt 0:00:01]} e6 {[%emt 0:00:22]} 3. Nf3 {[%emt 0:00:03]} d5 {[%emt 0:01:05]} 4. Nc3 {[%emt 0:00:09]} Be7 {[%emt 0:01:15]} 5. Bf4 {[%emt 0:00:11]} O-O {[%emt 0:02:32]} 6. e3 {[%emt 0:00:04]} b6 {[%emt 0:10:55]} 7. a3 {[%emt 0:00:52] D37: Queen's Gambit Declined: 5 Bf4.} Bb7 {[%emt 0:06:49]} 8. cxd5 {[%emt 0:02:10]} Nxd5 {[%emt 0:01:20] 8...exd5 is vanishing.} 9. Nxd5 {[%emt 0:00:06] The position is equal.} Bxd5 {[%emt 0:00:29]} 10. Bd3 {[%emt 0:00:30]} Nd7 {[%emt 0:01:04]} 11. Qc2 {[%emt 0:00:44][%csl LRc7,LRh7]} h6 {[%emt 0:07:48] [#]} (11... f5 $142) 12. Bxc7 $146 {[%emt 0:15:21]} ({Predecessor:} 12. Qxc7 Qxc7 13. Bxc7 Rac8 14. Bg3 f5 15. O-O g5 16. Rac1 Bxf3 17. gxf3 h5 18. Ba6 Rxc1 19. Rxc1 h4 20. Bc7 Nf6 21. Bb7 Rf7 22. Be5 Nd7 23. Bc7 Nf6 {½-½ (23) Khashimov,V (2188)-Pozhidaev,E (2113) Voronezh 2007}) 12... Qc8 {[%emt 0:00:53][%cal Od7c5]} 13. Rc1 $36 {[%emt 0:08:39][%mdl 2048] White has strong initiative. White is more active.} Nf6 {[%emt 0:00:12]} 14. O-O {[%emt 0:02:30]} Qb7 {[%emt 0:00:22]} 15. Qe2 {[%emt 0:00:19]} a5 {[%emt 0:01:24]} 16. Bf4 {[%emt 0:01:51] [#] Rc7 is the strong threat.} Rfc8 {[%emt 0:02:59] Inhibits Rc7.} 17. Rxc8+ {[%emt 0:02:42]} Qxc8 {[%emt 0:00:06]} 18. e4 {[%emt 0:01:42][%cal Be3e4,Be4d5][%mdl 32]} Nh5 {[%emt 0:06:09]} (18... Bb7 {was called for.} 19. Rc1 Qe8) 19. Bxh6 $18 {[%emt 0:12:22]} gxh6 $2 {[%emt 0:00:13]} (19... Bb7) 20. exd5 {[%emt 0:00:03]} Nf4 {[%emt 0:00:15]} 21. Qe4 {[%emt 0:00:17] [#] Intending Qh7+ and mate.} Nxd3 {[%emt 0:00:16]} 22. Qxd3 {[%emt 0:00:04]} (22. dxe6 $142 Qxe6 23. Qxa8+ Kg7 24. Qb7) 22... exd5 {[%emt 0:00:08]} 23. h3 {[%emt 0:01:00]} Bf6 {[%emt 0:00:25]} 24. Re1 {[%emt 0:02:28]} Qd7 {[%emt 0:01:23]} 25. Qe3 {[%emt 0:01:50]} Bg7 {[%emt 0:01:17]} 26. Qb3 {[%emt 0:01:43]} Qd6 {[%emt 0:02:28]} 27. Qb5 {[%emt 0:01:56]} Ra7 $2 {[%emt 0:03:06]} (27... Rc8 $16 {was worth a try.} 28. Qd3 Qd7) 28. Re8+ {[%emt 0:03:46]} Bf8 {[%emt 0:00:09]} 29. Ne5 {[%emt 0:04:15]} Rc7 {[%emt 0:01:49]} (29... Re7 $142 30. Rxe7 Qxe7 31. Qxd5 Bg7) 30. Qd3 {[%emt 0:05:06] White is clearly winning.} f6 {[%emt 0:48:01]} (30... Rc1+ $142 31. Kh2 Kg7) 31. Qg6+ {[%emt 0:33:13]} Rg7 32. Qxh6 {aiming for Ng6.} Rc7 {[%emt 0:01:00] White took control after the opening.  Weighted Error Value: White=0.13 (very precise) /Black=0.49} 1-0

[Event "56th Ilmar Raud Memorial 2022"]
[Site "Viljandi"]
[Date "2022.07.05"]
[Round "1.5"]
[White "Hansson, Markus"]
[Black "Miezis, Normunds"]
[Result "0-1"]
[ECO "A36"]
[WhiteElo "1745"]
[BlackElo "2446"]
[Annotator "TA"]
[PlyCount "58"]
[EventDate "2022.07.05"]
[EventType "swiss"]
[EventCountry "EST"]
[SourceTitle "playchess.com"]
[Source "ChessBase"]
[SourceQuality "1"]
[TimeControl "40/5400+30:900+30"]

{[%evp 11,58,0,12,11,8,0,20,0,0,0,0,0,6,0,-12,-17,0,-131,-103,-137,-114,-112,-70,-103,-86,-135,-134,-141,-147,-131,23,-101,0,0,145,179,149,-239,-223,-943,-903,-1157,-1120,-5231,-5052,-29991,-29992,-29992,-29993]} 1. c4 {[%emt 0:00:04]} c5 {[%emt 0:00:18]} 2. Nc3 {[%emt 0:00:19]} Nc6 {[%emt 0:00:21]} 3. g3 {[%emt 0:00:34]} g6 {[%emt 0:00:13]} 4. Bg2 {[%emt 0:00:14]} Bg7 {[%emt 0:00:11]} 5. e4 {[%emt 0:01:55]} d6 {[%emt 0:00:49]} 6. Nge2 {[%emt 0:05:42]} h5 {[%emt 0:01:00]} 7. h3 {[%emt 0:00:30] A36: Symmetrical English vs ...g6: 4 Bg2 Bg7.} a6 {[%emt 0:00:12][%cal Ob7b5]} 8. d3 {[%emt 0:00:53]} Bd7 {[%emt 0:00:19]} 9. O-O {[%emt 0:02:00] The position is equal.} Rb8 {[%emt 0:01:02]} 10. a4 {[%emt 0:02:58] [#]} b6 $146 {[%emt 0:06:39]} ({Predecessor:} 10... e6 11. Rb1 Nge7 12. Be3 Qc8 13. Kh2 h4 14. g4 f5 15. exf5 gxf5 16. g5 Nd4 17. Qd2 O-O 18. f4 Be8 19. Ng1 {0-1 (19) Stankovic,I (2222)-Chelushkina,I (2279) Belgrade 2016}) 11. Be3 {[%emt 0:02:29]} Nd4 {[%emt 0:00:25]} 12. Ra2 {[%emt 0:14:33]} Qc8 {[%emt 0:06:28]} 13. Kh2 {[%emt 0:02:16]} Nf6 {[%emt 0:03:21]} 14. Nd5 {[%emt 0:07:33] [#]} (14. f3 $11) 14... Ng4+ $1 $17 {[%emt 0:13:30][%mdl 512]} 15. hxg4 {[%emt 0:04:45]} (15. Kg1 Nxe3) 15... hxg4+ {[%emt 0:01:11]} 16. Kg1 {[%emt 0:00:07] Threatens to win with Nxd4.} Nf3+ {[%emt 0:00:37]} 17. Bxf3 {[%emt 0:00:06]} gxf3 {[%emt 0:00:11]} 18. Nef4 {[%emt 0:02:03]} (18. Nec3 $142 e6 19. Qxf3 $1 exd5 20. Nxd5) 18... Bg4 $1 {[%emt 0:03:49] This bishop pair is nice.} 19. a5 {[%emt 0:07:13]} bxa5 {[%emt 0:07:30]} 20. Rxa5 {[%emt 0:02:06]} Kf8 $2 {[%emt 0:02:46] Dancing on a razor blade.} (20... g5 $1 $17 {[%cal Rg5f4]} 21. Nxe7 (21. Qa4+ Bd7 $17) 21... Kxe7 22. Nd5+ Kf8 23. Bxg5 Bh3 24. Be7+ (24. Qxf3 Bxf1 25. Ra2 Qh3 $19) 24... Ke8 25. Qa4+ (25. Qxf3 $2 Bxf1 26. Kxf1 Qh3+ 27. Qg2 Qh5 $19) (25. Bxd6 Bg2 26. Nc7+ Kd7 27. Qa4+ Rb5) 25... Bd7) 21. Re1 {[%emt 0:16:53]} (21. d4 $11 {keeps the balance.} g5 22. dxc5 $1 (22. Nd3 Bh3 $11) 22... gxf4 23. Nxf4) 21... e6 {[%emt 0:03:41]} (21... g5 $17 22. Nxe7 Kxe7 23. Nd5+ Kf8 24. Bxg5 Be5) 22. d4 $1 $11 {[%emt 0:01:57][%cal Rd4c5]} ({But not} 22. Nc3 g5 23. e5 gxf4 24. Bxf4 Rxb2 $17) 22... cxd4 {[%emt 0:08:45] [#]} (22... exd5 $11 23. dxc5 dxc4) 23. Bxd4 $1 $16 {[%emt 0:00:29][%cal Od5e7] Hoping for Ne7!} e5 {[%emt 0:00:16] [#]} (23... Bxd4 24. Qxd4) 24. Nb6 $2 {[%emt 0:01:47][%mdl 8192] [#] This move loses the game for White.} (24. Bc3 $1 $16 {[%cal Rc3b4] and life is bright.}) 24... Qd8 $1 $19 {[%emt 0:05:42]} 25. Bxe5 {[%emt 0:00:29]} (25. Bc5 Rxb6 26. Bxb6 Qxb6 27. Rd5 exf4 28. Rxd6) 25... Bxe5 {[%emt 0:00:49]} 26. Rxe5 {[%emt 0:05:14]} dxe5 {[%emt 0:00:44]} 27. Qxd8+ {[%emt 0:00:15]} Rxd8 {[%emt 0:00:08]} 28. Nfd5 {[%emt 0:00:09]} Kg7 {[%emt 0:02:29]} 29. Ne3 {[%emt 0:00:16] [#]} Rh5 $1 {[%emt 0:01:35] Weighted Error Value: White=1.19/Black=0.28 (precise)} 0-1

[Event "56th Ilmar Raud Memorial 2022"]
[Site "Viljandi"]
[Date "2022.07.05"]
[Round "1.6"]
[White "Starostits, Ilmars"]
[Black "Zaitsev, Boris"]
[Result "1-0"]
[ECO "A43"]
[WhiteElo "2441"]
[BlackElo "1912"]
[Annotator "TA"]
[PlyCount "71"]
[EventDate "2022.07.05"]
[EventType "swiss"]
[EventCountry "EST"]
[SourceTitle "playchess.com"]
[Source "ChessBase"]
[SourceQuality "1"]
[TimeControl "40/5400+30:900+30"]

{[%evp 13,71,50,62,-22,-14,-20,-22,-3,14,0,0,0,12,-1,7,0,60,29,54,29,72,54,189,185,191,186,239,161,166,152,170,165,245,216,485,464,527,529,640,631,628,627,886,890,29986,29987,29987,1578,29988,29989,29989,29990,29990,29987,29991,5750,6541,1579,5258,1560]} 1. d4 {[%emt 0:00:06]} Nf6 {[%emt 0:00:27]} 2. Nf3 {[%emt 0:00:24]} c5 {[%emt 0:01:06]} 3. d5 {[%emt 0:00:07]} e6 {[%emt 0:01:24]} 4. Nc3 {[%emt 0:00:21]} d6 {[%emt 0:03:20]} 5. e4 {[%emt 0:00:30]} exd5 {[%emt 0:00:56]} 6. Nxd5 {[%emt 0:00:57]} Nxd5 {[%emt 0:01:17]} 7. Qxd5 {[%emt 0:00:09]} Nc6 {[%emt 0:01:05]} 8. Bf4 {[%emt 0:00:37] White is more active. A43: Schmid Benoni.} ({Better is} 8. Ng5 $1 $14 Qc7 9. Bc4) 8... Qf6 $1 $11 {[%emt 0:01:47][%csl LRb2,LRf4]} 9. Bb5 {[%emt 0:02:53]} Bd7 {[%emt 0:01:28]} 10. Bc1 {[%emt 0:01:16] [#] The position is equal.} Qe6 $146 {[%emt 0:02:53]} (10... Qg6 {keeps more tension.} 11. O-O a6 12. Bc4 Be7) ({Predecessor:} 10... a6 11. Be2 Be6 12. Qd1 h6 13. O-O Be7 14. c3 O-O 15. Be3 Rfd8 16. Qc2 b5 {1-0 (44) Misyakov,I (2086)-Krasnov,L (1803) Novosibirsk 2010}) 11. Qxe6+ {[%emt 0:01:12]} fxe6 {[%emt 0:00:51]} 12. c3 {[%emt 0:01:07]} Be7 {[%emt 0:01:00]} 13. Be3 {[%emt 0:00:18]} O-O {[%emt 0:02:06]} 14. O-O-O {[%emt 0:00:09] [#] Hoping for Bxc5.} Nb8 {[%emt 0:01:32]} (14... Rad8 $11) 15. Bc4 {[%emt 0:00:49] Threatens to win with Ng5.} b5 {[%emt 0:01:35]} 16. Bb3 {[%emt 0:00:06]} Na6 {[%emt 0:03:45]} 17. Ne5 {[%emt 0:00:59]} Bc8 {[%emt 0:03:20] Loses the game.} (17... Rfd8 $14) 18. Nc6 $18 {[%emt 0:00:25]} Kf7 {[%emt 0:01:06]} 19. c4 $36 {[%emt 0:08:47][%mdl 2048] White is on the roll.} Nc7 {[%emt 0:05:55]} (19... bxc4 {was worth a try.} 20. Bxc4 Nb4) 20. e5 {[%emt 0:00:55]} bxc4 {[%emt 0:04:37]} 21. exd6 {[%emt 0:00:49]} Bxd6 {[%emt 0:02:42]} 22. Bxc4 {[%emt 0:00:13]} ({Don't do} 22. Rxd6 cxb3 23. axb3 Nb5 $16) 22... Ne8 {[%emt 0:03:31]} (22... Nd5 {was necessary.} 23. Bxd5 exd5) 23. Rhe1 {[%emt 0:02:11]} Bd7 $2 {[%emt 0:02:49] [#]} (23... Kg8 24. g3 Bb7) 24. Ne5+ {[%emt 0:02:48]} Ke7 {[%emt 0:08:44]} 25. Bg5+ {[%emt 0:00:37]} Nf6 {[%emt 0:01:01]} 26. Nxd7 {[%emt 0:00:06]} Kxd7 {[%emt 0:00:47]} 27. Rxe6 {[%emt 0:00:07]} Ne8 {[%emt 0:01:28]} 28. Re7+ {[%emt 0:00:34]} Kc8 {[%emt 0:03:39]} 29. Ba6+ {[%emt 0:00:10] A strong pair of Bishops.} Kb8 {[%emt 0:02:09]} 30. Rb7+ {[%emt 0:00:10]} Kc8 {[%emt 0:00:32]} 31. Rxg7+ {[%emt 0:00:06]} Kb8 {[%emt 0:00:20]} 32. Rb7+ {[%emt 0:00:06]} Kc8 {[%emt 0:00:33]} 33. Rxh7+ {[%emt 0:00:06]} Kb8 {[%emt 0:00:01]} 34. Rb7+ {[%emt 0:00:14]} (34. Bd8 $142 Bf4+ 35. Kb1 Nc7 36. Bxc7+ Bxc7 37. Rdd7 Re8 38. Rxc7 Re1+ 39. Kc2 Re2+ 40. Bxe2 c4 41. Rcg7 Kc8 42. Rh8#) 34... Kc8 {[%emt 0:00:15]} 35. Rf7+ {[%emt 0:00:05]} Kb8 {[%emt 0:00:12]} 36. Rxf8 {[%emt 0:00:09] Weighted Error Value: White=0.15 (very precise) /Black=0.82} 1-0